{"text_format":"1","workbook":"xlsx","n_sheets":3,"sheets":["Purchase","C-O Refi","Data"],"not_rendered":{"charts":0,"images":1,"macros":1,"external_links":0,"defined_names":14,"comments":0,"pivot_tables":0},"unopened":[],"bounds":{"document_bytes":16777216,"sheet_cells":100000,"rows_first":2000,"rows_last":500,"rows_between":2000,"halvings":0,"cell_chars":16384,"cell_head_chars":4096},"cells_cut":0,"cells_raw":0,"read":"whole","date_system":"1900"}

{"sheet":"Purchase","index":0,"n_rows":86,"n_cols":14,"rows_kept":86,"cut":false,"hidden":false,"merged":[[3,3,3,10],[39,8,39,9],[83,1,85,2],[83,5,83,7],[84,5,84,7],[53,8,53,9],[85,5,85,7],[84,8,84,9],[65,8,65,9],[83,3,83,4],[84,3,84,4],[85,3,85,4],[82,1,82,2],[82,3,82,4],[82,5,82,7],[63,8,63,9],[85,8,85,9],[14,8,14,9],[16,8,16,9],[18,8,18,9],[83,8,83,9],[77,8,77,9],[82,8,82,9],[49,8,49,9],[61,8,61,9],[51,8,51,9],[41,8,41,9],[45,8,45,9],[47,8,47,9],[35,8,35,9],[37,8,37,9],[59,8,59,9],[57,8,57,9],[0,0,0,10],[4,0,4,10],[8,6,8,9],[8,1,8,2],[33,8,33,9],[6,1,6,2],[6,6,6,9],[6,4,6,5],[1,3,1,10],[2,3,2,10],[12,8,12,9],[29,8,29,9],[22,4,22,6],[23,8,23,9],[27,8,27,9],[25,8,25,9],[51,1,51,3],[67,8,67,9],[69,8,69,9],[73,8,73,9],[75,8,75,9],[71,8,71,9]]}
[]
[null,null,null,"VA Loan Limit Worksheet - Purchase - Base Loan Amount > $144,000"]
[null,null,null,"(Complete highlighted boxes only - Revised 03/03/20)"]
[null,null,null,"ONLY USE THIS WORKSHEET WHEN THE VETERAN HAS PARTIAL ENTITLEMENT"]
[]
[]
["Loan #:  ",null,null,null,"Borrower Name:  "]
[]
["Date Prepared:  ",null,null,null,null,"Prepared By:  "]
[]
[]
["Required Guaranty & Down Payment"]
["1. Sales Price"]
[]
["2. Appraised Value"]
[]
["3. Lesser of Sales Price/Appraisal",null,null,null,null,null,null,null,{"$f":"MIN(I13,I15)","v":0}]
[]
["4. Required 25% Coverage (based on lower of Sales Price/Appraised Value)",null,null,null,null,null,null,"x 25%",{"$f":"I17*0.25","v":0}]
[]
["Available Guaranty"]
[]
[null,"State:",null,"County:"]
["5. County Limit",null,null,null,null,null,null,null,{"$f":"IF(E23=\"\",0,VLOOKUP(E23,Data!A13:B905,2,FALSE))","v":0}]
[]
["6. Maximum Potential Guaranty",null,null,null,null,null,null,"x 25%",{"$f":"ROUNDDOWN((I24*0.25),0)","v":0}]
[]
["7. Less Previous Used Entitlement Not Restorable"]
[]
["8. Available Entitlement & Guaranty",null,null,null,null,null,null,null,{"$f":"ROUNDDOWN((I26-I28),0)","v":0},null,null,null,{"$f":"IF(I13=0,0,I30/MIN(I13,I15))","v":0}]
[]
[null,null,null,null,null,null,null,null,null,null,null,null,null,{"$f":"IFERROR(SUM(M30,M34),\"\")","v":0}]
["Down Payment"]
["9. Down Payment Due from Guaranty Shortfall",null,null,null,null,null,null,"(Available Entitlement less Rqd Coverage)",{"$f":"IF(I30<I19,I19-I30,0)","v":0},null,null,null,{"$f":"IF(M30=0,0,IF(M30>0.25,0,0.25-M30))","v":0}]
[]
["10. Down Payment Due from Appraisal Shortfall",null,null,null,null,null,null,"(Sales Price less Appraised Value)",{"$f":"IF(I13>I15,I13-I15,0)","v":0}]
[]
["11. Required Down Payment",null,null,null,null,null,null,null,{"$f":"I34+I36","v":0}]
[]
["12. Veteran's Additional Down Payment",null,null,null,null,null,null,null,null,null,null,null,null,{"$f":"IFERROR(SUM(M46,M34),\"\")","v":0}]
[]
["13. Total Investment From Borrower",null,null,null,null,null,null,"Downpayment Total $",{"$f":"I38+I40","v":0},null,null,null,{"$f":"IF(I13=0,0,I42/I13)","v":0}]
[]
[]
["Maximum Loan Amount"]
["14. Max Allowable Base Loan Amount for this Transaction",null,null,null,null,null,null,null,{"$f":"I13-I38","v":0},null,null,null,{"$f":"IF(I13=0,0,I46/MIN(I13,I15))","v":0}]
[]
["15. Less Veteran's Additional Down Payment",null,null,null,null,null,null,null,{"$f":"I40","v":0}]
[]
["16. Base Loan Amount before Funding Fee",null,null,null,null,null,null,null,{"$f":"I46-I48","v":0},null,null,null,{"$f":"IF(I15=0,0,I50/MIN(I13,I15))","v":0}]
[]
["17. Type of Veteran",null,null,null,null,"VA Funding Fee %",{"$f":"IF(B52=\"Regular - First Time Use\",Data!F5,IF(B52=\"Regular - Subsequent Use\",Data!F6,IF(B52=\"Reserves/Nation Guard - 1st Time Use\",Data!F7,IF(B52=\"Reserves/Nation Guard - Sub. Use\",Data!F8,Data!F9))))","v":0},null,{"$f":"ROUNDDOWN(G54,0)","v":0}]
[]
["18. Total Note Loan Amount",null,null,null,null,"VA Funding Fee $",{"$f":"I50*G52","v":0},null,{"$f":"ROUNDDOWN((I50+I52),0)","v":0}]
[]
[]
["Cash to Close"]
["19. Purchase Price",null,null,null,null,null,null,null,{"$f":"I13","v":0}]
[]
["20. Est. Prepaids"]
[]
["21. Est. Closing Costs & Discount Points"]
[]
["22. Funding Fee",null,null,null,null,null,null,null,{"$f":"I52","v":0}]
[]
["23. Total Costs",null,null,null,null,null,null,null,{"$f":"I58+I60+I62+I64","v":0}]
[]
["24. Seller-paid costs"]
[]
["25. Other credits"]
[]
["26. Base Loan Amount (excluding Funding Fee financed)",null,null,null,null,null,null,null,{"$f":"I50","v":0}]
[]
["27. Funding Fee financed",null,null,null,null,null,null,null,{"$f":"ROUNDDOWN(I52,0)","v":0}]
[]
["28. Total Credits",null,null,null,null,null,null,null,{"$f":"I68+I70+I72+I74","v":0}]
[]
["29. Cash from Borrower",null,null,null,null,null,null,null,{"$f":"I66-I76","v":0}]
[]
[]
["Funding Fee Table - Loans Funding after December 31, 2019"]
[]
[null,"Type of Veteran",null,"Down Payment",null,"% First Time Use",null,null,"% Subsequent Use"]
[null,"All",null,"None",null,2.3E-2,null,null,{"$f":"Data!B6","v":3.5999999999999997E-2}]
[null,null,null,"5% or more",null,1.6500000000000001E-2,null,null,{"$f":"Data!C6","v":1.6500000000000001E-2}]
[null,null,null,"10% or more",null,{"$f":"Data!D5","v":1.4E-2},null,null,{"$f":"Data!D6","v":1.4E-2}]

{"sheet":"C-O Refi","index":1,"n_rows":76,"n_cols":14,"rows_kept":76,"cut":false,"hidden":false,"merged":[[75,1,75,2],[75,3,75,4],[75,8,75,9],[75,5,75,6],[63,8,63,9],[65,8,65,9],[67,8,67,9],[69,8,69,9],[74,1,74,2],[74,3,74,4],[74,8,74,9],[74,5,74,6],[61,8,61,9],[41,8,41,9],[43,1,43,3],[43,8,43,9],[45,8,45,9],[49,8,49,9],[51,8,51,9],[53,8,53,9],[55,8,55,9],[57,8,57,9],[59,8,59,9],[33,8,33,9],[35,8,35,9],[39,8,39,9],[20,4,20,6],[21,8,21,9],[23,8,23,9],[25,8,25,9],[27,8,27,9],[31,8,31,9],[8,1,8,2],[8,6,8,9],[12,8,12,9],[14,8,14,9],[16,8,16,9],[0,0,0,10],[1,3,1,10],[2,3,2,10],[4,0,4,10],[6,1,6,2],[6,4,6,5],[6,6,6,9],[3,3,3,10]]}
[]
[null,null,null,"VA Loan Limit Worksheet - Cash Out Refi - Base Loan Amount > $144,000"]
[null,null,null,{"$f":"Purchase!D3","v":"(Complete highlighted boxes only - Revised 03/03/20)"}]
[null,null,null,"ONLY USE THIS WORKSHEET WHEN THE VETERAN HAS PARTIAL ENTITLEMENT"]
[]
[]
["Loan #:  ",null,null,null,"Borrower Name:  "]
[]
["Date Prepared:  ",null,null,null,null,"Prepared By:  "]
[]
[]
["Required Guaranty & Down Payment"]
["1. Desired Loan Amount"]
[]
["2. Appraised Value"]
[]
["3. Required 25% Coverage (based on Appraised Value)",null,null,null,null,null,null,"x 25%",{"$f":"I15*0.25","v":0}]
[]
["Available Guaranty"]
[]
[null,"State:",null,"County:"]
["4. County Limit",null,null,null,null,null,null,null,{"$f":"IF(E21=\"\",0,VLOOKUP(E21,Data!A13:B905,2,FALSE))","v":0}]
[]
["5. Maximum Potential Guaranty",null,null,null,null,null,null,"x 25%",{"$f":"ROUNDDOWN((I22*0.25),0)","v":0}]
[]
["6. Less Previous Used Entitlement Not Restorable"]
[]
["7. Available Entitlement & Guaranty",null,null,null,null,null,null,null,{"$f":"ROUNDDOWN((I24-I26),0)","v":0},null,null,null,{"$f":"IF(I13=0,0,I28/I13)","v":0}]
[]
[null,null,null,null,null,null,null,null,null,null,null,null,null,{"$f":"IFERROR(SUM(M28,M32),\"\")","v":0}]
["Veteran's Down Payment and Equity Calculation"]
["8. Guaranty Shortfall",null,null,null,null,null,null,"(Available Entitlement less Rqd Coverage)",{"$f":"IF(I28<I17,I17-I28,0)","v":0},null,null,null,{"$f":"IF(M28=0,0,IF(M28>0.25,0,0.25-M28))","v":0}]
[]
["9. Available Equity",null,null,null,null,null,null,"(Appraised Value less Desired Loan Amount)",{"$f":"IF(I13>I15,0,I15-I13)","v":0},null,null,null,{"$f":"IF(I13=0,0,I34/I13)","v":0}]
[]
["10. Required Investment",null,null,null,null,null,null,null,{"$f":"IF(I34>I32,0,I32-I34)","v":0},null,null,null,{"$f":"IF(I13=0,0,I36/I13)","v":0}]
[]
[]
["Maximum Loan Amount"]
["11. Max Allowable Base Loan Amount for this Transaction",null,null,null,null,null,null,null,{"$f":"I13-I36","v":0}]
[]
["12. Base Loan Amount before Funding Fee",null,null,null,null,null,null,null,{"$f":"I40","v":0},null,null,null,{"$f":"IF(I15=0,0,I42/I15)","v":0}]
[]
["13. Type of Veteran",null,null,null,null,"VA Funding Fee",{"$f":"IF(B44=\"Regular - First Time Use\",0.023,IF(B44=\"Regular - Subsequent Use\",0.036,IF(B44=\"Reserves/Nation Guard - 1st Time Use\",0.023,IF(B44=\"Reserves/Nation Guard - Sub. Use\",0.036,0))))","v":0},null,{"$f":"ROUNDDOWN(G46,0)","v":0}]
[]
["14. Total Note Loan Amount",null,null,null,null,"VA Funding Fee",{"$f":"G44*I42","v":0},null,{"$f":"ROUNDDOWN(I42+I44,0)","v":0}]
[]
[]
["Cash to Close"]
["15. Refinance Payoff"]
[]
["16. Est. Prepaids"]
[]
["17. Est. Closing Costs & Discount Points"]
[]
["18. Funding Fee",null,null,null,null,null,null,null,{"$f":"I44","v":0}]
[]
["19. Total Costs",null,null,null,null,null,null,null,{"$f":"I50+I52+I54+I56","v":0}]
[]
["20. Seller-paid costs"]
[]
["21. Other credits"]
[]
["22. Base Loan Amount (excluding Funding Fee financed)",null,null,null,null,null,null,null,{"$f":"I42","v":0}]
[]
["23. Funding Fee financed",null,null,null,null,null,null,null,{"$f":"ROUNDDOWN(I44,0)","v":0}]
[]
["24. Total Credits",null,null,null,null,null,null,null,{"$f":"I60+I62+I64+I66","v":0}]
[]
["25. Cash from Borrower",null,null,null,null,null,null,null,{"$f":"I58-I68","v":0}]
[]
[]
["Funding Fee Table - Loans Funding after December 31, 2019"]
[]
[null,"Type of Veteran",null,"% First Time Use",null,"% Subsequent Use"]
[null,"ALL",null,{"$f":"Data!B5","v":2.3E-2},null,{"$f":"Data!B6","v":3.5999999999999997E-2}]

{"sheet":"Data","index":2,"n_rows":568,"n_cols":47,"rows_kept":568,"cut":false,"hidden":false,"merged":[[2,1,2,5]]}
[]
[null,null,null,null,null,null,null,null,"State","County","Limit",null,"State","County","Limit",null,"State","County","Limit",null,"State","County","Limit",null,"State","County","Limit",null,"State","County","Limit",null,"State","County","Limit",null,"State","County","Limit",null,"State","County","Limit",null,"State","County","Limit"]
["Funding Fee - Purchase","Down Payment",null,null,null,null,null,null,"AZ","APACHE",510400,null,"CA","ALAMEDA",765600,null,"CO","ADAMS - CO",575000,null,"ID","ADA",510400,null,"NV","CARSON CITY",510400,null,"OR","BAKER",510400,null,"TX","ANDERSON",510400,null,"UT","BEAVER",510400,null,"WA","ADAMS - WA",510400,null,"WY","ALBANY",453100]
["Vet Type",0,"≥ 5%","≥ 10%","Down","FF",null,null,"AZ","COCHISE",510400,null,"CA","ALPINE",510400,null,"CO","ALAMOSA",510400,null,"ID","ADAMS - ID",510400,null,"NV","CHURCHILL",510400,null,"OR","BENTON - OR",510400,null,"TX","ANDREWS",510400,null,"UT","BOX ELDER",646300,null,"WA","ASOTIN",510400,null,"WY","BIG HORN",453100]
["Regular - First Time Use",2.3E-2,1.6500000000000001E-2,1.4E-2,{"$f":"1-Purchase!M$50","v":1},{"$f":"IF(E5<0.05,B5,IF(E5>=0.1,D5,C5))","v":1.4E-2},null,null,"AZ","COCONINO",510400,null,"CA","AMADOR",510400,null,"CO","ARAPAHOE",575000,null,"ID","BANNOCK",510400,null,"NV","CLARK",510400,null,"OR","CLACKAMAS",510400,null,"TX","ANGELINA",510400,null,"UT","CACHE",510400,null,"WA","BENTON - WA",510400,null,"WY","CAMPBELL",453100]
["Regular - Subsequent Use",3.5999999999999997E-2,1.6500000000000001E-2,1.4E-2,{"$f":"1-Purchase!M$50","v":1},{"$f":"IF(E6<0.05,B6,IF(E6>=0.1,D6,C6))","v":1.4E-2},null,null,"AZ","GILA",510400,null,"CA","BUTTE - CA",510400,null,"CO","ARCHULETA",510400,null,"ID","BEAR LAKE",510400,null,"NV","DOUGLAS - NV",510400,null,"OR","CLATSOP",510400,null,"TX","ARANSAS",510400,null,"UT","CARBON - UT",510400,null,"WA","CHELAN",510400,null,"WY","CARBON - WY",453100]
["Reserves/Nation Guard - 1st Time Use",2.3E-2,1.6500000000000001E-2,1.4E-2,{"$f":"1-Purchase!M$50","v":1},1.4E-2,null,null,"AZ","GRAHAM",510400,null,"CA","CALAVERAS",510400,null,"CO","BACA",510400,null,"ID","BENEWAH",510400,null,"NV","ELKO",510400,null,"OR","COLUMBIA - OR",510400,null,"TX","ARCHER",510400,null,"UT","DAGGETT",510400,null,"WA","CLALLAM",510400,null,"WY","CONVERSE",453100]
["Reserves/Nation Guard - Sub. Use",3.5999999999999997E-2,1.6500000000000001E-2,1.4E-2,{"$f":"1-Purchase!M$50","v":1},1.4E-2,null,null,"AZ","GREENLEE",510400,null,"CA","COLUSA",510400,null,"CO","BENT",510400,null,"ID","BINGHAM",510400,null,"NV","ESMERALDA",510400,null,"OR","COOS",510400,null,"TX","ARMSTRONG",510400,null,"UT","DAVIS",646300,null,"WA","CLARK",510400,null,"WY","CROOK",453100]
["Exempt",0,0,0,{"$f":"1-Purchase!M$50","v":1},0,null,null,"AZ","LA PAZ",510400,null,"CA","CONTRA COSTA",765600,null,"CO","BOULDER",644000,null,"ID","BLAINE",625500,null,"NV","EUREKA",510400,null,"OR","CROOK",510400,null,"TX","ATASCOSA",510400,null,"UT","DUCHESNE",510400,null,"WA","COLUMBIA - WA",510400,null,"WY","FREMONT",453100]
[null,null,null,null,null,null,null,null,"AZ","MARICOPA",510400,null,"CA","DEL NORTE",510400,null,"CO","BROOMFIELD",575000,null,"ID","BOISE",510400,null,"NV","HUMBOLDT",510400,null,"OR","CURRY",510400,null,"TX","AUSTIN",510400,null,"UT","EMERY",510400,null,"WA","COWLITZ",510400,null,"WY","GOSHEN",453100]
[null,null,null,null,null,null,null,null,"AZ","MOHAVE",510400,null,"CA","EL DORADO",569250,null,"CO","CHAFFEE",510400,null,"ID","BONNER",510400,null,"NV","LANDER",510400,null,"OR","DESCHUTES",510400,null,"TX","BAILEY",510400,null,"UT","GARFIELD",510400,null,"WA","DOUGLAS - WA",510400,null,"WY","HOT SPRINGS",453100]
["County","Limit",null,"State",null,null,null,null,"AZ","NAVAJO",510400,null,"CA","FRESNO",510400,null,"CO","CHEYENNE",510400,null,"ID","BONNEVILLE",510400,null,"NV","LINCOLN",510400,null,"OR","DOUGLAS - OR",510400,null,"TX","BANDERA",510400,null,"UT","GRAND",510400,null,"WA","FERRY",510400,null,"WY","JOHNSON",453100]
["ADA",510400,null,"AZ",null,null,null,null,"AZ","PIMA",510400,null,"CA","GLENN",510400,null,"CO","CLEAR CREEK",575000,null,"ID","BOUNDARY",510400,null,"NV","LYON",510400,null,"OR","GILLIAM",510400,null,"TX","BASTROP",510400,null,"UT","IRON",510400,null,"WA","FRANKLIN",510400,null,"WY","LARAMIE",453100]
["ADAMS - CO",575000,null,"CA",null,null,null,null,"AZ","PINAL",510400,null,"CA","HUMBOLDT",510400,null,"CO","CONEJOS",510400,null,"ID","BUTTE - ID",510400,null,"NV","MINERAL",510400,null,"OR","GRANT",510400,null,"TX","BAYLOR",510400,null,"UT","JUAB",510400,null,"WA","GARFIELD",510400,null,"WY","LINCOLN",453100]
["ADAMS - ID",510400,null,"CO",null,null,null,null,"AZ","SANTA CRUZ - AZ",510400,null,"CA","IMPERIAL",510400,null,"CO","COSTILLA",510400,null,"ID","CAMAS",625500,null,"NV","NYE",510400,null,"OR","HARNEY",510400,null,"TX","BEE",510400,null,"UT","KANE",510400,null,"WA","GRANT",510400,null,"WY","NATRONA",453100]
["ADAMS - WA",510400,null,"ID",null,null,null,null,"AZ","YAVAPAI",510400,null,"CA","INYO",510400,null,"CO","CROWLEY",510400,null,"ID","CANYON",510400,null,"NV","PERSHING",510400,null,"OR","HOOD RIVER",510400,null,"TX","BELL",510400,null,"UT","MILLARD",510400,null,"WA","GRAYS HARBOR",510400,null,"WY","NIOBRARA",453100]
["ALAMEDA",765600,null,"NV",null,null,null,null,"AZ","YUMA",510400,null,"CA","KERN",510400,null,"CO","CUSTER",510400,null,"ID","CARIBOU",510400,null,"NV","STOREY",510400,null,"OR","JACKSON",510400,null,"TX","BEXAR",510400,null,"UT","MORGAN - UT",646300,null,"WA","ISLAND",510400,null,"WY","PARK",453100]
["ALAMOSA",510400,null,"OR",null,null,null,null,null,null,null,null,"CA","KINGS",510400,null,"CO","DELTA",510400,null,"ID","CASSIA",510400,null,"NV","WASHOE",510400,null,"OR","JEFFERSON",510400,null,"TX","BLANCO",510400,null,"UT","PIUTE",510400,null,"WA","JEFFERSON",510400,null,"WY","PLATTE",453100]
["ALPINE",510400,null,"TX",null,null,null,null,null,null,null,null,"CA","LAKE",510400,null,"CO","DENVER",575000,null,"ID","CLARK",510400,null,"NV","WHITE PINE",510400,null,"OR","JOSEPHINE",510400,null,"TX","BORDEN",510400,null,"UT","RICH",510400,null,"WA","KING - WA",741750,null,"WY","SHERIDAN",453100]
["AMADOR",510400,null,"UT",null,null,null,null,null,null,null,null,"CA","LASSEN",510400,null,"CO","DOLORES",510400,null,"ID","CLEARWATER",510400,null,null,null,null,null,"OR","KLAMATH",510400,null,"TX","BOSQUE",510400,null,"UT","SALT LAKE",600300,null,"WA","KITSAP",510400,null,"WY","SUBLETTE",453100]
["ANDERSON",510400,null,"WA",null,null,null,null,null,null,null,null,"CA","LOS ANGELES",765600,null,"CO","DOUGLAS - CO",575000,null,"ID","CUSTER",510400,null,null,null,null,null,"OR","LAKE",510400,null,"TX","BOWIE",510400,null,"UT","SAN JUAN",510400,null,"WA","KITTITAS",510400,null,"WY","SWEETWATER",453100]
["ANDREWS",510400,null,null,null,null,null,null,null,null,null,null,"CA","MADERA",510400,null,"CO","EAGLE",750950,null,"ID","ELMORE",510400,null,null,null,null,null,"OR","LANE",510400,null,"TX","BRAZORIA",510400,null,"UT","SANPETE",510400,null,"WA","KLICKITAT",510400,null,"WY","TETON",679650]
["ANGELINA",510400,null,null,null,null,null,null,null,null,null,null,"CA","MARIN",765600,null,"CO","EL PASO",510400,null,"ID","FRANKLIN",510400,null,null,null,null,null,"OR","LINCOLN",510400,null,"TX","BRAZOS",510400,null,"UT","SEVIER",510400,null,"WA","LEWIS",510400,null,"WY","UINTA",453100]
["APACHE",510400,null,null,null,null,null,null,null,null,null,null,"CA","MARIPOSA",510400,null,"CO","ELBERT",575000,null,"ID","FREMONT",510400,null,null,null,null,null,"OR","LINN",510400,null,"TX","BREWSTER",510400,null,"UT","SUMMIT - UT",762450,null,"WA","LINCOLN",510400,null,"WY","WASHAKIE",453100]
["ARANSAS",510400,null,null,null,null,null,null,null,null,null,null,"CA","MENDOCINO",510400,null,"CO","FREMONT",510400,null,"ID","GEM",510400,null,null,null,null,null,"OR","MALHEUR",510400,null,"TX","BRISCOE",510400,null,"UT","TOOELE",600300,null,"WA","MASON",510400,null,"WY","WESTON",453100]
["ARAPAHOE",575000,null,null,null,null,null,null,null,null,null,null,"CA","MERCED",510400,null,"CO","GARFIELD - CO",765600,null,"ID","GOODING",510400,null,null,null,null,null,"OR","MARION",510400,null,"TX","BROOKS",510400,null,"UT","UINTAH",510400,null,"WA","OKANOGAN",510400]
["ARCHER",510400,null,null,null,null,null,null,null,null,null,null,"CA","MODOC",510400,null,"CO","GILPIN",575000,null,"ID","IDAHO",510400,null,null,null,null,null,"OR","MORROW",510400,null,"TX","BROWN",510400,null,"UT","UTAH",510400,null,"WA","PACIFIC",510400]
["ARCHULETA",510400,null,null,null,null,null,null,null,null,null,null,"CA","MONO",529000,null,"CO","GRAND",510400,null,"ID","JEFFERSON",510400,null,null,null,null,null,"OR","MULTNOMAH",510400,null,"TX","BURLESON",510400,null,"UT","WASATCH",762450,null,"WA","PEND OREILLE",510400]
["ARMSTRONG",510400,null,null,null,null,null,null,null,null,null,null,"CA","MONTEREY",672750,null,"CO","GUNNISON",510400,null,"ID","JEROME",510400,null,null,null,null,null,"OR","POLK",510400,null,"TX","BURNET",510400,null,"UT","WASHINGTON",510400,null,"WA","PIERCE",741750]
["ASOTIN",510400,null,null,null,null,null,null,null,null,null,null,"CA","NAPA",764750,null,"CO","HINSDALE",510400,null,"ID","KOOTENAI",510400,null,null,null,null,null,"OR","SHERMAN",510400,null,"TX","CALDWELL",510400,null,"UT","WAYNE",510400,null,"WA","SAN JUAN - WA",510400]
["ATASCOSA",510400,null,null,null,null,null,null,null,null,null,null,"CA","NEVADA",510400,null,"CO","HUERFANO",510400,null,"ID","LATAH",510400,null,null,null,null,null,"OR","TILLAMOOK",510400,null,"TX","CALHOUN",510400,null,"UT","WEBER",646300,null,"WA","SKAGIT",510400]
["AUSTIN",510400,null,null,null,null,null,null,null,null,null,null,"CA","ORANGE - CA",765600,null,"CO","JACKSON",510400,null,"ID","LEMHI",510400,null,null,null,null,null,"OR","UMATILLA",510400,null,"TX","CALLAHAN",510400,null,null,null,null,null,"WA","SKAMANIA",510400]
["BACA",510400,null,null,null,null,null,null,null,null,null,null,"CA","PLACER",569250,null,"CO","JEFFERSON - CO",575000,null,"ID","LEWIS",510400,null,null,null,null,null,"OR","UNION",510400,null,"TX","CAMERON",510400,null,null,null,null,null,"WA","SNOHOMISH",741750]
["BAILEY",510400,null,null,null,null,null,null,null,null,null,null,"CA","PLUMAS",510400,null,"CO","KIOWA",510400,null,"ID","LINCOLN - ID",625500,null,null,null,null,null,"OR","WALLOWA",510400,null,"TX","CAMP",510400,null,null,null,null,null,"WA","SPOKANE",510400]
["BAKER",510400,null,null,null,null,null,null,null,null,null,null,"CA","RIVERSIDE",510400,null,"CO","KIT CARSON",510400,null,"ID","MADISON",510400,null,null,null,null,null,"OR","WASCO",510400,null,"TX","CARSON",510400,null,null,null,null,null,"WA","STEVENS",510400]
["BANDERA",510400,null,null,null,null,null,null,null,null,null,null,"CA","SACRAMENTO",569250,null,"CO","LA PLATA",510400,null,"ID","MINIDOKA",510400,null,null,null,null,null,"OR","WASHINGTON",510400,null,"TX","CASS",510400,null,null,null,null,null,"WA","THURSTON",510400]
["BANNOCK",510400,null,null,null,null,null,null,null,null,null,null,"CA","SAN BENITO",765600,null,"CO","LAKE - CO",625500,null,"ID","NEZ PERCE",510400,null,null,null,null,null,"OR","WHEELER",510400,null,"TX","CASTRO",510400,null,null,null,null,null,"WA","WAHKIAKUM",510400]
["BASTROP",510400,null,null,null,null,null,null,null,null,null,null,"CA","SAN BERNARDINO",510400,null,"CO","LARIMER",510400,null,"ID","ONEIDA",510400,null,null,null,null,null,"OR","YAMHILL",510400,null,"TX","CHAMBERS",510400,null,null,null,null,null,"WA","WALLA WALLA",510400]
["BAYLOR",510400,null,null,null,null,null,null,null,null,null,null,"CA","SAN DIEGO",701500,null,"CO","LAS ANIMAS",510400,null,"ID","OWYHEE",510400,null,null,null,null,null,null,null,null,null,"TX","CHEROKEE",510400,null,null,null,null,null,"WA","WHATCOM",510400]
["BEAR LAKE",510400,null,null,null,null,null,null,null,null,null,null,"CA","SAN FRANCISCO",765600,null,"CO","LINCOLN",510400,null,"ID","PAYETTE",510400,null,null,null,null,null,null,null,null,null,"TX","CHILDRESS",510400,null,null,null,null,null,"WA","WHITMAN",510400]
["BEAVER",510400,null,null,null,null,null,null,null,null,null,null,"CA","SAN JOAQUIN",510400,null,"CO","LOGAN",510400,null,"ID","POWER",510400,null,null,null,null,null,null,null,null,null,"TX","CLAY",510400,null,null,null,null,null,"WA","YAKIMA",510400]
["BEE",510400,null,null,null,null,null,null,null,null,null,null,"CA","SAN LUIS OBISPO",690000,null,"CO","MESA",510400,null,"ID","SHOSHONE",510400,null,null,null,null,null,null,null,null,null,"TX","COCHRAN",510400]
["BELL",510400,null,null,null,null,null,null,null,null,null,null,"CA","SAN MATEO",765600,null,"CO","MINERAL",510400,null,"ID","TETON",765600,null,null,null,null,null,null,null,null,null,"TX","COKE",510400]
["BENEWAH",510400,null,null,null,null,null,null,null,null,null,null,"CA","SANTA BARBARA",625500,null,"CO","MOFFAT",510400,null,"ID","TWIN FALLS",510400,null,null,null,null,null,null,null,null,null,"TX","COLEMAN",510400]
["BENT",510400,null,null,null,null,null,null,null,null,null,null,"CA","SANTA CLARA",765600,null,"CO","MONTEZUMA",510400,null,"ID","VALLEY",510400,null,null,null,null,null,null,null,null,null,"TX","COLLIN",510400]
["BENTON - OR",510400,null,null,null,null,null,null,null,null,null,null,"CA","SANTA CRUZ - CA",765600,null,"CO","MONTROSE",510400,null,"ID","WASHINGTON",510400,null,null,null,null,null,null,null,null,null,"TX","COLLINGSWORTH",510400]
["BENTON - WA",510400,null,null,null,null,null,null,null,null,null,null,"CA","SHASTA",510400,null,"CO","MORGAN - CO",510400,null,null,null,null,null,null,null,null,null,null,null,null,null,"TX","COLORADO",510400]
["BEXAR",510400,null,null,null,null,null,null,null,null,null,null,"CA","SIERRA",510400,null,"CO","OTERO",510400,null,null,null,null,null,null,null,null,null,null,null,null,null,"TX","COMAL",510400]
["BINGHAM",510400,null,null,null,null,null,null,null,null,null,null,"CA","SISKIYOU",510400,null,"CO","OURAY",510400,null,null,null,null,null,null,null,null,null,null,null,null,null,"TX","COMANCHE",510400]
["BLAINE",625500,null,null,null,null,null,null,null,null,null,null,"CA","SOLANO",510400,null,"CO","PARK - CO",575000,null,null,null,null,null,null,null,null,null,null,null,null,null,"TX","CONCHO",510400]
["BLANCO",510400,null,null,null,null,null,null,null,null,null,null,"CA","SONOMA",704950,null,"CO","PHILLIPS",510400,null,null,null,null,null,null,null,null,null,null,null,null,null,"TX","COOKE",510400]
["BOISE",510400,null,null,null,null,null,null,null,null,null,null,"CA","STANISLAUS",510400,null,"CO","PITKIN",765600,null,null,null,null,null,null,null,null,null,null,null,null,null,"TX","CORYELL",510400]
["BONNER",510400,null,null,null,null,null,null,null,null,null,null,"CA","SUTTER",510400,null,"CO","PROWERS",510400,null,null,null,null,null,null,null,null,null,null,null,null,null,"TX","COTTLE",510400]
["BONNEVILLE",510400,null,null,null,null,null,null,null,null,null,null,"CA","TEHAMA",510400,null,"CO","PUEBLO",510400,null,null,null,null,null,null,null,null,null,null,null,null,null,"TX","CRANE",510400]
["BORDEN",510400,null,null,null,null,null,null,null,null,null,null,"CA","TRINITY",510400,null,"CO","RIO BLANCO",510400,null,null,null,null,null,null,null,null,null,null,null,null,null,"TX","CROCKETT",510400]
["BOSQUE",510400,null,null,null,null,null,null,null,null,null,null,"CA","TULARE",510400,null,"CO","RIO GRANDE",510400,null,null,null,null,null,null,null,null,null,null,null,null,null,"TX","CROSBY",510400]
["BOULDER",644000,null,null,null,null,null,null,null,null,null,null,"CA","TUOLUMNE",510400,null,"CO","ROUTT",638250,null,null,null,null,null,null,null,null,null,null,null,null,null,"TX","CULBERSON",510400]
["BOUNDARY",510400,null,null,null,null,null,null,null,null,null,null,"CA","VENTURA",713000,null,"CO","SAGUACHE",510400,null,null,null,null,null,null,null,null,null,null,null,null,null,"TX","DALLAM",510400]
["BOWIE",510400,null,null,null,null,null,null,null,null,null,null,"CA","YOLO",569250,null,"CO","SAN JUAN",510400,null,null,null,null,null,null,null,null,null,null,null,null,null,"TX","DALLAS",510400]
["BOX ELDER",646300,null,null,null,null,null,null,null,null,null,null,"CA","YUBA",510400,null,"CO","SAN MIGUEL",625500,null,null,null,null,null,null,null,null,null,null,null,null,null,"TX","DAWSON",510400]
["BRAZORIA",510400,null,null,null,null,null,null,null,null,null,null,null,null,null,null,"CO","SEDGWICK",510400,null,null,null,null,null,null,null,null,null,null,null,null,null,"TX","DEAF SMITH",510400]
["BRAZOS",510400,null,null,null,null,null,null,null,null,null,null,null,null,null,null,"CO","SUMMIT",625500,null,null,null,null,null,null,null,null,null,null,null,null,null,"TX","DELTA",510400]
["BREWSTER",510400,null,null,null,null,null,null,null,null,null,null,null,null,null,null,"CO","TELLER",510400,null,null,null,null,null,null,null,null,null,null,null,null,null,"TX","DENTON",510400]
["BRISCOE",510400,null,null,null,null,null,null,null,null,null,null,null,null,null,null,"CO","WASHINGTON",510400,null,null,null,null,null,null,null,null,null,null,null,null,null,"TX","DEWITT",510400]
["BROOKS",510400,null,null,null,null,null,null,null,null,null,null,null,null,null,null,"CO","WELD",510400,null,null,null,null,null,null,null,null,null,null,null,null,null,"TX","DICKENS",510400]
["BROOMFIELD",575000,null,null,null,null,null,null,null,null,null,null,null,null,null,null,"CO","YUMA",510400,null,null,null,null,null,null,null,null,null,null,null,null,null,"TX","DIMMIT",510400]
["BROWN",510400,null,null,null,null,null,null,null,null,null,null,null,null,null,null,null,null,null,null,null,null,null,null,null,null,null,null,null,null,null,null,"TX","DONLEY",510400]
["BURLESON",510400,null,null,null,null,null,null,null,null,null,null,null,null,null,null,null,null,null,null,null,null,null,null,null,null,null,null,null,null,null,null,"TX","DUVAL",510400]
["BURNET",510400,null,null,null,null,null,null,null,null,null,null,null,null,null,null,null,null,null,null,null,null,null,null,null,null,null,null,null,null,null,null,"TX","EASTLAND",510400]
["BUTTE - CA",510400,null,null,null,null,null,null,null,null,null,null,null,null,null,null,null,null,null,null,null,null,null,null,null,null,null,null,null,null,null,null,"TX","ECTOR",510400]
["BUTTE - ID",510400,null,null,null,null,null,null,null,null,null,null,null,null,null,null,null,null,null,null,null,null,null,null,null,null,null,null,null,null,null,null,"TX","EDWARDS",510400]
["CACHE",510400,null,null,null,null,null,null,null,null,null,null,null,null,null,null,null,null,null,null,null,null,null,null,null,null,null,null,null,null,null,null,"TX","EL PASO",510400]
["CALAVERAS",510400,null,null,null,null,null,null,null,null,null,null,null,null,null,null,null,null,null,null,null,null,null,null,null,null,null,null,null,null,null,null,"TX","ELLIS",510400]
["CALDWELL",510400,null,null,null,null,null,null,null,null,null,null,null,null,null,null,null,null,null,null,null,null,null,null,null,null,null,null,null,null,null,null,"TX","ERATH",510400]
["CALHOUN",510400,null,null,null,null,null,null,null,null,null,null,null,null,null,null,null,null,null,null,null,null,null,null,null,null,null,null,null,null,null,null,"TX","FALLS",510400]
["CALLAHAN",510400,null,null,null,null,null,null,null,null,null,null,null,null,null,null,null,null,null,null,null,null,null,null,null,null,null,null,null,null,null,null,"TX","FANNIN",510400]
["CAMAS",625500,null,null,null,null,null,null,null,null,null,null,null,null,null,null,null,null,null,null,null,null,null,null,null,null,null,null,null,null,null,null,"TX","FAYETTE",510400]
["CAMERON",510400,null,null,null,null,null,null,null,null,null,null,null,null,null,null,null,null,null,null,null,null,null,null,null,null,null,null,null,null,null,null,"TX","FISHER",510400]
["CAMP",510400,null,null,null,null,null,null,null,null,null,null,null,null,null,null,null,null,null,null,null,null,null,null,null,null,null,null,null,null,null,null,"TX","FLOYD",510400]
["CANYON",510400,null,null,null,null,null,null,null,null,null,null,null,null,null,null,null,null,null,null,null,null,null,null,null,null,null,null,null,null,null,null,"TX","FOARD",510400]
["CARBON - UT",510400,null,null,null,null,null,null,null,null,null,null,null,null,null,null,null,null,null,null,null,null,null,null,null,null,null,null,null,null,null,null,"TX","FORT BEND",510400]
["CARIBOU",510400,null,null,null,null,null,null,null,null,null,null,null,null,null,null,null,null,null,null,null,null,null,null,null,null,null,null,null,null,null,null,"TX","FRANKLIN",510400]
["CARSON",510400,null,null,null,null,null,null,null,null,null,null,null,null,null,null,null,null,null,null,null,null,null,null,null,null,null,null,null,null,null,null,"TX","FREESTONE",510400]
["CARSON CITY",510400,null,null,null,null,null,null,null,null,null,null,null,null,null,null,null,null,null,null,null,null,null,null,null,null,null,null,null,null,null,null,"TX","FRIO",510400]
["CASS",510400,null,null,null,null,null,null,null,null,null,null,null,null,null,null,null,null,null,null,null,null,null,null,null,null,null,null,null,null,null,null,"TX","GAINES",510400]
["CASSIA",510400,null,null,null,null,null,null,null,null,null,null,null,null,null,null,null,null,null,null,null,null,null,null,null,null,null,null,null,null,null,null,"TX","GALVESTON",510400]
["CASTRO",510400,null,null,null,null,null,null,null,null,null,null,null,null,null,null,null,null,null,null,null,null,null,null,null,null,null,null,null,null,null,null,"TX","GARZA",510400]
["CHAFFEE",510400,null,null,null,null,null,null,null,null,null,null,null,null,null,null,null,null,null,null,null,null,null,null,null,null,null,null,null,null,null,null,"TX","GILLESPIE",510400]
["CHAMBERS",510400,null,null,null,null,null,null,null,null,null,null,null,null,null,null,null,null,null,null,null,null,null,null,null,null,null,null,null,null,null,null,"TX","GLASSCOCK",510400]
["CHELAN",510400,null,null,null,null,null,null,null,null,null,null,null,null,null,null,null,null,null,null,null,null,null,null,null,null,null,null,null,null,null,null,"TX","GOLIAD",510400]
["CHEROKEE",510400,null,null,null,null,null,null,null,null,null,null,null,null,null,null,null,null,null,null,null,null,null,null,null,null,null,null,null,null,null,null,"TX","GONZALES",510400]
["CHEYENNE",510400,null,null,null,null,null,null,null,null,null,null,null,null,null,null,null,null,null,null,null,null,null,null,null,null,null,null,null,null,null,null,"TX","GRAY",510400]
["CHILDRESS",510400,null,null,null,null,null,null,null,null,null,null,null,null,null,null,null,null,null,null,null,null,null,null,null,null,null,null,null,null,null,null,"TX","GRAYSON",510400]
["CHURCHILL",510400,null,null,null,null,null,null,null,null,null,null,null,null,null,null,null,null,null,null,null,null,null,null,null,null,null,null,null,null,null,null,"TX","GREGG",510400]
["CLACKAMAS",510400,null,null,null,null,null,null,null,null,null,null,null,null,null,null,null,null,null,null,null,null,null,null,null,null,null,null,null,null,null,null,"TX","GRIMES",510400]
["CLALLAM",510400,null,null,null,null,null,null,null,null,null,null,null,null,null,null,null,null,null,null,null,null,null,null,null,null,null,null,null,null,null,null,"TX","GUADALUPE",510400]
["CLARK",510400,null,null,null,null,null,null,null,null,null,null,null,null,null,null,null,null,null,null,null,null,null,null,null,null,null,null,null,null,null,null,"TX","HALE",510400]
["CLARK",510400,null,null,null,null,null,null,null,null,null,null,null,null,null,null,null,null,null,null,null,null,null,null,null,null,null,null,null,null,null,null,"TX","HALL",510400]
["CLARK",510400,null,null,null,null,null,null,null,null,null,null,null,null,null,null,null,null,null,null,null,null,null,null,null,null,null,null,null,null,null,null,"TX","HAMILTON",510400]
["CLATSOP",510400,null,null,null,null,null,null,null,null,null,null,null,null,null,null,null,null,null,null,null,null,null,null,null,null,null,null,null,null,null,null,"TX","HANSFORD",510400]
["CLAY",510400,null,null,null,null,null,null,null,null,null,null,null,null,null,null,null,null,null,null,null,null,null,null,null,null,null,null,null,null,null,null,"TX","HARDEMAN",510400]
["CLEAR CREEK",575000,null,null,null,null,null,null,null,null,null,null,null,null,null,null,null,null,null,null,null,null,null,null,null,null,null,null,null,null,null,null,"TX","HARDIN",510400]
["CLEARWATER",510400,null,null,null,null,null,null,null,null,null,null,null,null,null,null,null,null,null,null,null,null,null,null,null,null,null,null,null,null,null,null,"TX","HARRIS",510400]
["COCHISE",510400,null,null,null,null,null,null,null,null,null,null,null,null,null,null,null,null,null,null,null,null,null,null,null,null,null,null,null,null,null,null,"TX","HARRISON",510400]
["COCHRAN",510400,null,null,null,null,null,null,null,null,null,null,null,null,null,null,null,null,null,null,null,null,null,null,null,null,null,null,null,null,null,null,"TX","HARTLEY",510400]
["COCONINO",510400,null,null,null,null,null,null,null,null,null,null,null,null,null,null,null,null,null,null,null,null,null,null,null,null,null,null,null,null,null,null,"TX","HASKELL",510400]
["COKE",510400,null,null,null,null,null,null,null,null,null,null,null,null,null,null,null,null,null,null,null,null,null,null,null,null,null,null,null,null,null,null,"TX","HAYS",510400]
["COLEMAN",510400,null,null,null,null,null,null,null,null,null,null,null,null,null,null,null,null,null,null,null,null,null,null,null,null,null,null,null,null,null,null,"TX","HEMPHILL",510400]
["COLLIN",510400,null,null,null,null,null,null,null,null,null,null,null,null,null,null,null,null,null,null,null,null,null,null,null,null,null,null,null,null,null,null,"TX","HENDERSON",510400]
["COLLINGSWORTH",510400,null,null,null,null,null,null,null,null,null,null,null,null,null,null,null,null,null,null,null,null,null,null,null,null,null,null,null,null,null,null,"TX","HIDALGO",510400]
["COLORADO",510400,null,null,null,null,null,null,null,null,null,null,null,null,null,null,null,null,null,null,null,null,null,null,null,null,null,null,null,null,null,null,"TX","HILL",510400]
["COLUMBIA - OR",510400,null,null,null,null,null,null,null,null,null,null,null,null,null,null,null,null,null,null,null,null,null,null,null,null,null,null,null,null,null,null,"TX","HOCKLEY",510400]
["COLUMBIA - WA",510400,null,null,null,null,null,null,null,null,null,null,null,null,null,null,null,null,null,null,null,null,null,null,null,null,null,null,null,null,null,null,"TX","HOOD",510400]
["COLUSA",510400,null,null,null,null,null,null,null,null,null,null,null,null,null,null,null,null,null,null,null,null,null,null,null,null,null,null,null,null,null,null,"TX","HOPKINS",510400]
["COMAL",510400,null,null,null,null,null,null,null,null,null,null,null,null,null,null,null,null,null,null,null,null,null,null,null,null,null,null,null,null,null,null,"TX","HOUSTON",510400]
["COMANCHE",510400,null,null,null,null,null,null,null,null,null,null,null,null,null,null,null,null,null,null,null,null,null,null,null,null,null,null,null,null,null,null,"TX","HOWARD",510400]
["CONCHO",510400,null,null,null,null,null,null,null,null,null,null,null,null,null,null,null,null,null,null,null,null,null,null,null,null,null,null,null,null,null,null,"TX","HUDSPETH",510400]
["CONEJOS",510400,null,null,null,null,null,null,null,null,null,null,null,null,null,null,null,null,null,null,null,null,null,null,null,null,null,null,null,null,null,null,"TX","HUNT",510400]
["CONTRA COSTA",765600,null,null,null,null,null,null,null,null,null,null,null,null,null,null,null,null,null,null,null,null,null,null,null,null,null,null,null,null,null,null,"TX","HUTCHINSON",510400]
["COOKE",510400,null,null,null,null,null,null,null,null,null,null,null,null,null,null,null,null,null,null,null,null,null,null,null,null,null,null,null,null,null,null,"TX","IRION",510400]
["COOS",510400,null,null,null,null,null,null,null,null,null,null,null,null,null,null,null,null,null,null,null,null,null,null,null,null,null,null,null,null,null,null,"TX","JACK",510400]
["CORYELL",510400,null,null,null,null,null,null,null,null,null,null,null,null,null,null,null,null,null,null,null,null,null,null,null,null,null,null,null,null,null,null,"TX","JACKSON",510400]
["COSTILLA",510400,null,null,null,null,null,null,null,null,null,null,null,null,null,null,null,null,null,null,null,null,null,null,null,null,null,null,null,null,null,null,"TX","JASPER",510400]
["COTTLE",510400,null,null,null,null,null,null,null,null,null,null,null,null,null,null,null,null,null,null,null,null,null,null,null,null,null,null,null,null,null,null,"TX","JEFF DAVIS",510400]
["COWLITZ",510400,null,null,null,null,null,null,null,null,null,null,null,null,null,null,null,null,null,null,null,null,null,null,null,null,null,null,null,null,null,null,"TX","JEFFERSON",510400]
["CRANE",510400,null,null,null,null,null,null,null,null,null,null,null,null,null,null,null,null,null,null,null,null,null,null,null,null,null,null,null,null,null,null,"TX","JIM HOGG",510400]
["CROCKETT",510400,null,null,null,null,null,null,null,null,null,null,null,null,null,null,null,null,null,null,null,null,null,null,null,null,null,null,null,null,null,null,"TX","JIM WELLS",510400]
["CROOK",510400,null,null,null,null,null,null,null,null,null,null,null,null,null,null,null,null,null,null,null,null,null,null,null,null,null,null,null,null,null,null,"TX","JOHNSON",510400]
["CROSBY",510400,null,null,null,null,null,null,null,null,null,null,null,null,null,null,null,null,null,null,null,null,null,null,null,null,null,null,null,null,null,null,"TX","JONES",510400]
["CROWLEY",510400,null,null,null,null,null,null,null,null,null,null,null,null,null,null,null,null,null,null,null,null,null,null,null,null,null,null,null,null,null,null,"TX","KARNES",510400]
["CULBERSON",510400,null,null,null,null,null,null,null,null,null,null,null,null,null,null,null,null,null,null,null,null,null,null,null,null,null,null,null,null,null,null,"TX","KAUFMAN",510400]
["CURRY",510400,null,null,null,null,null,null,null,null,null,null,null,null,null,null,null,null,null,null,null,null,null,null,null,null,null,null,null,null,null,null,"TX","KENDALL",510400]
["CUSTER",510400,null,null,null,null,null,null,null,null,null,null,null,null,null,null,null,null,null,null,null,null,null,null,null,null,null,null,null,null,null,null,"TX","KENEDY",510400]
["CUSTER",510400,null,null,null,null,null,null,null,null,null,null,null,null,null,null,null,null,null,null,null,null,null,null,null,null,null,null,null,null,null,null,"TX","KENT",510400]
["DAGGETT",510400,null,null,null,null,null,null,null,null,null,null,null,null,null,null,null,null,null,null,null,null,null,null,null,null,null,null,null,null,null,null,"TX","KERR",510400]
["DALLAM",510400,null,null,null,null,null,null,null,null,null,null,null,null,null,null,null,null,null,null,null,null,null,null,null,null,null,null,null,null,null,null,"TX","KIMBLE",510400]
["DALLAS",510400,null,null,null,null,null,null,null,null,null,null,null,null,null,null,null,null,null,null,null,null,null,null,null,null,null,null,null,null,null,null,"TX","KING - TX",510400]
["DAVIS",646300,null,null,null,null,null,null,null,null,null,null,null,null,null,null,null,null,null,null,null,null,null,null,null,null,null,null,null,null,null,null,"TX","KINNEY",510400]
["DAWSON",510400,null,null,null,null,null,null,null,null,null,null,null,null,null,null,null,null,null,null,null,null,null,null,null,null,null,null,null,null,null,null,"TX","KLEBERG",510400]
["DEAF SMITH",510400,null,null,null,null,null,null,null,null,null,null,null,null,null,null,null,null,null,null,null,null,null,null,null,null,null,null,null,null,null,null,"TX","KNOX",510400]
["DEL NORTE",510400,null,null,null,null,null,null,null,null,null,null,null,null,null,null,null,null,null,null,null,null,null,null,null,null,null,null,null,null,null,null,"TX","LA SALLE",510400]
["DELTA",510400,null,null,null,null,null,null,null,null,null,null,null,null,null,null,null,null,null,null,null,null,null,null,null,null,null,null,null,null,null,null,"TX","LAMAR",510400]
["DELTA",510400,null,null,null,null,null,null,null,null,null,null,null,null,null,null,null,null,null,null,null,null,null,null,null,null,null,null,null,null,null,null,"TX","LAMB",510400]
["DENTON",510400,null,null,null,null,null,null,null,null,null,null,null,null,null,null,null,null,null,null,null,null,null,null,null,null,null,null,null,null,null,null,"TX","LAMPASAS",510400]
["DENVER",575000,null,null,null,null,null,null,null,null,null,null,null,null,null,null,null,null,null,null,null,null,null,null,null,null,null,null,null,null,null,null,"TX","LAVACA",510400]
["DESCHUTES",510400,null,null,null,null,null,null,null,null,null,null,null,null,null,null,null,null,null,null,null,null,null,null,null,null,null,null,null,null,null,null,"TX","LEE",510400]
["DEWITT",510400,null,null,null,null,null,null,null,null,null,null,null,null,null,null,null,null,null,null,null,null,null,null,null,null,null,null,null,null,null,null,"TX","LEON",510400]
["DICKENS",510400,null,null,null,null,null,null,null,null,null,null,null,null,null,null,null,null,null,null,null,null,null,null,null,null,null,null,null,null,null,null,"TX","LIBERTY",510400]
["DIMMIT",510400,null,null,null,null,null,null,null,null,null,null,null,null,null,null,null,null,null,null,null,null,null,null,null,null,null,null,null,null,null,null,"TX","LIMESTONE",510400]
["DOLORES",510400,null,null,null,null,null,null,null,null,null,null,null,null,null,null,null,null,null,null,null,null,null,null,null,null,null,null,null,null,null,null,"TX","LIPSCOMB",510400]
["DONLEY",510400,null,null,null,null,null,null,null,null,null,null,null,null,null,null,null,null,null,null,null,null,null,null,null,null,null,null,null,null,null,null,"TX","LIVE OAK",510400]
["DOUGLAS - CO",575000,null,null,null,null,null,null,null,null,null,null,null,null,null,null,null,null,null,null,null,null,null,null,null,null,null,null,null,null,null,null,"TX","LLANO",510400]
["DOUGLAS - NV",510400,null,null,null,null,null,null,null,null,null,null,null,null,null,null,null,null,null,null,null,null,null,null,null,null,null,null,null,null,null,null,"TX","LOVING",510400]
["DOUGLAS - OR",510400,null,null,null,null,null,null,null,null,null,null,null,null,null,null,null,null,null,null,null,null,null,null,null,null,null,null,null,null,null,null,"TX","LUBBOCK",510400]
["DOUGLAS - WA",510400,null,null,null,null,null,null,null,null,null,null,null,null,null,null,null,null,null,null,null,null,null,null,null,null,null,null,null,null,null,null,"TX","LYNN",510400]
["DUCHESNE",510400,null,null,null,null,null,null,null,null,null,null,null,null,null,null,null,null,null,null,null,null,null,null,null,null,null,null,null,null,null,null,"TX","MADISON",510400]
["DUVAL",510400,null,null,null,null,null,null,null,null,null,null,null,null,null,null,null,null,null,null,null,null,null,null,null,null,null,null,null,null,null,null,"TX","MARION",510400]
["EAGLE",750950,null,null,null,null,null,null,null,null,null,null,null,null,null,null,null,null,null,null,null,null,null,null,null,null,null,null,null,null,null,null,"TX","MARTIN",510400]
["EASTLAND",510400,null,null,null,null,null,null,null,null,null,null,null,null,null,null,null,null,null,null,null,null,null,null,null,null,null,null,null,null,null,null,"TX","MASON",510400]
["ECTOR",510400,null,null,null,null,null,null,null,null,null,null,null,null,null,null,null,null,null,null,null,null,null,null,null,null,null,null,null,null,null,null,"TX","MATAGORDA",510400]
["EDWARDS",510400,null,null,null,null,null,null,null,null,null,null,null,null,null,null,null,null,null,null,null,null,null,null,null,null,null,null,null,null,null,null,"TX","MAVERICK",510400]
["EL DORADO",569250,null,null,null,null,null,null,null,null,null,null,null,null,null,null,null,null,null,null,null,null,null,null,null,null,null,null,null,null,null,null,"TX","MCCULLOCH",510400]
["EL PASO",510400,null,null,null,null,null,null,null,null,null,null,null,null,null,null,null,null,null,null,null,null,null,null,null,null,null,null,null,null,null,null,"TX","MCLENNAN",510400]
["EL PASO",510400,null,null,null,null,null,null,null,null,null,null,null,null,null,null,null,null,null,null,null,null,null,null,null,null,null,null,null,null,null,null,"TX","MCMULLEN",510400]
["ELBERT",575000,null,null,null,null,null,null,null,null,null,null,null,null,null,null,null,null,null,null,null,null,null,null,null,null,null,null,null,null,null,null,"TX","MEDINA",510400]
["ELKO",510400,null,null,null,null,null,null,null,null,null,null,null,null,null,null,null,null,null,null,null,null,null,null,null,null,null,null,null,null,null,null,"TX","MENARD",510400]
["ELLIS",510400,null,null,null,null,null,null,null,null,null,null,null,null,null,null,null,null,null,null,null,null,null,null,null,null,null,null,null,null,null,null,"TX","MIDLAND",510400]
["ELMORE",510400,null,null,null,null,null,null,null,null,null,null,null,null,null,null,null,null,null,null,null,null,null,null,null,null,null,null,null,null,null,null,"TX","MILAM",510400]
["EMERY",510400,null,null,null,null,null,null,null,null,null,null,null,null,null,null,null,null,null,null,null,null,null,null,null,null,null,null,null,null,null,null,"TX","MILLS",510400]
["ERATH",510400,null,null,null,null,null,null,null,null,null,null,null,null,null,null,null,null,null,null,null,null,null,null,null,null,null,null,null,null,null,null,"TX","MITCHELL",510400]
["ESMERALDA",510400,null,null,null,null,null,null,null,null,null,null,null,null,null,null,null,null,null,null,null,null,null,null,null,null,null,null,null,null,null,null,"TX","MONTAGUE",510400]
["EUREKA",510400,null,null,null,null,null,null,null,null,null,null,null,null,null,null,null,null,null,null,null,null,null,null,null,null,null,null,null,null,null,null,"TX","MONTGOMERY",510400]
["FALLS",510400,null,null,null,null,null,null,null,null,null,null,null,null,null,null,null,null,null,null,null,null,null,null,null,null,null,null,null,null,null,null,"TX","MOORE",510400]
["FANNIN",510400,null,null,null,null,null,null,null,null,null,null,null,null,null,null,null,null,null,null,null,null,null,null,null,null,null,null,null,null,null,null,"TX","MORRIS",510400]
["FAYETTE",510400,null,null,null,null,null,null,null,null,null,null,null,null,null,null,null,null,null,null,null,null,null,null,null,null,null,null,null,null,null,null,"TX","MOTLEY",510400]
["FERRY",510400,null,null,null,null,null,null,null,null,null,null,null,null,null,null,null,null,null,null,null,null,null,null,null,null,null,null,null,null,null,null,"TX","NACOGDOCHES",510400]
["FISHER",510400,null,null,null,null,null,null,null,null,null,null,null,null,null,null,null,null,null,null,null,null,null,null,null,null,null,null,null,null,null,null,"TX","NAVARRO",510400]
["FLOYD",510400,null,null,null,null,null,null,null,null,null,null,null,null,null,null,null,null,null,null,null,null,null,null,null,null,null,null,null,null,null,null,"TX","NEWTON",510400]
["FOARD",510400,null,null,null,null,null,null,null,null,null,null,null,null,null,null,null,null,null,null,null,null,null,null,null,null,null,null,null,null,null,null,"TX","NOLAN",510400]
["FORT BEND",510400,null,null,null,null,null,null,null,null,null,null,null,null,null,null,null,null,null,null,null,null,null,null,null,null,null,null,null,null,null,null,"TX","NUECES",510400]
["FRANKLIN",510400,null,null,null,null,null,null,null,null,null,null,null,null,null,null,null,null,null,null,null,null,null,null,null,null,null,null,null,null,null,null,"TX","OCHILTREE",510400]
["FRANKLIN",510400,null,null,null,null,null,null,null,null,null,null,null,null,null,null,null,null,null,null,null,null,null,null,null,null,null,null,null,null,null,null,"TX","OLDHAM",510400]
["FRANKLIN",510400,null,null,null,null,null,null,null,null,null,null,null,null,null,null,null,null,null,null,null,null,null,null,null,null,null,null,null,null,null,null,"TX","ORANGE",510400]
["FREESTONE",510400,null,null,null,null,null,null,null,null,null,null,null,null,null,null,null,null,null,null,null,null,null,null,null,null,null,null,null,null,null,null,"TX","PALO PINTO",510400]
["FREMONT",510400,null,null,null,null,null,null,null,null,null,null,null,null,null,null,null,null,null,null,null,null,null,null,null,null,null,null,null,null,null,null,"TX","PANOLA",510400]
["FREMONT",510400,null,null,null,null,null,null,null,null,null,null,null,null,null,null,null,null,null,null,null,null,null,null,null,null,null,null,null,null,null,null,"TX","PARKER",510400]
["FRESNO",510400,null,null,null,null,null,null,null,null,null,null,null,null,null,null,null,null,null,null,null,null,null,null,null,null,null,null,null,null,null,null,"TX","PARMER",510400]
["FRIO",510400,null,null,null,null,null,null,null,null,null,null,null,null,null,null,null,null,null,null,null,null,null,null,null,null,null,null,null,null,null,null,"TX","PECOS",510400]
["GAINES",510400,null,null,null,null,null,null,null,null,null,null,null,null,null,null,null,null,null,null,null,null,null,null,null,null,null,null,null,null,null,null,"TX","POLK",510400]
["GALVESTON",510400,null,null,null,null,null,null,null,null,null,null,null,null,null,null,null,null,null,null,null,null,null,null,null,null,null,null,null,null,null,null,"TX","POTTER",510400]
["GARFIELD",510400,null,null,null,null,null,null,null,null,null,null,null,null,null,null,null,null,null,null,null,null,null,null,null,null,null,null,null,null,null,null,"TX","PRESIDIO",510400]
["GARFIELD",510400,null,null,null,null,null,null,null,null,null,null,null,null,null,null,null,null,null,null,null,null,null,null,null,null,null,null,null,null,null,null,"TX","RAINS",510400]
["GARFIELD - CO",765600,null,null,null,null,null,null,null,null,null,null,null,null,null,null,null,null,null,null,null,null,null,null,null,null,null,null,null,null,null,null,"TX","RANDALL",510400]
["GARZA",510400,null,null,null,null,null,null,null,null,null,null,null,null,null,null,null,null,null,null,null,null,null,null,null,null,null,null,null,null,null,null,"TX","REAGAN",510400]
["GEM",510400,null,null,null,null,null,null,null,null,null,null,null,null,null,null,null,null,null,null,null,null,null,null,null,null,null,null,null,null,null,null,"TX","REAL",510400]
["GILA",510400,null,null,null,null,null,null,null,null,null,null,null,null,null,null,null,null,null,null,null,null,null,null,null,null,null,null,null,null,null,null,"TX","RED RIVER",510400]
["GILLESPIE",510400,null,null,null,null,null,null,null,null,null,null,null,null,null,null,null,null,null,null,null,null,null,null,null,null,null,null,null,null,null,null,"TX","REEVES",510400]
["GILLIAM",510400,null,null,null,null,null,null,null,null,null,null,null,null,null,null,null,null,null,null,null,null,null,null,null,null,null,null,null,null,null,null,"TX","REFUGIO",510400]
["GILPIN",575000,null,null,null,null,null,null,null,null,null,null,null,null,null,null,null,null,null,null,null,null,null,null,null,null,null,null,null,null,null,null,"TX","ROBERTS",510400]
["GLASSCOCK",510400,null,null,null,null,null,null,null,null,null,null,null,null,null,null,null,null,null,null,null,null,null,null,null,null,null,null,null,null,null,null,"TX","ROBERTSON",510400]
["GLENN",510400,null,null,null,null,null,null,null,null,null,null,null,null,null,null,null,null,null,null,null,null,null,null,null,null,null,null,null,null,null,null,"TX","ROCKWALL",510400]
["GOLIAD",510400,null,null,null,null,null,null,null,null,null,null,null,null,null,null,null,null,null,null,null,null,null,null,null,null,null,null,null,null,null,null,"TX","RUNNELS",510400]
["GONZALES",510400,null,null,null,null,null,null,null,null,null,null,null,null,null,null,null,null,null,null,null,null,null,null,null,null,null,null,null,null,null,null,"TX","RUSK",510400]
["GOODING",510400,null,null,null,null,null,null,null,null,null,null,null,null,null,null,null,null,null,null,null,null,null,null,null,null,null,null,null,null,null,null,"TX","SABINE",510400]
["GRAHAM",510400,null,null,null,null,null,null,null,null,null,null,null,null,null,null,null,null,null,null,null,null,null,null,null,null,null,null,null,null,null,null,"TX","SAN AUGUSTINE",510400]
["GRAND",510400,null,null,null,null,null,null,null,null,null,null,null,null,null,null,null,null,null,null,null,null,null,null,null,null,null,null,null,null,null,null,"TX","SAN JACINTO",510400]
["GRAND",510400,null,null,null,null,null,null,null,null,null,null,null,null,null,null,null,null,null,null,null,null,null,null,null,null,null,null,null,null,null,null,"TX","SAN PATRICIO",510400]
["GRANT",510400,null,null,null,null,null,null,null,null,null,null,null,null,null,null,null,null,null,null,null,null,null,null,null,null,null,null,null,null,null,null,"TX","SAN SABA",510400]
["GRANT",510400,null,null,null,null,null,null,null,null,null,null,null,null,null,null,null,null,null,null,null,null,null,null,null,null,null,null,null,null,null,null,"TX","SCHLEICHER",510400]
["GRAY",510400,null,null,null,null,null,null,null,null,null,null,null,null,null,null,null,null,null,null,null,null,null,null,null,null,null,null,null,null,null,null,"TX","SCURRY",510400]
["GRAYS HARBOR",510400,null,null,null,null,null,null,null,null,null,null,null,null,null,null,null,null,null,null,null,null,null,null,null,null,null,null,null,null,null,null,"TX","SHACKELFORD",510400]
["GRAYSON",510400,null,null,null,null,null,null,null,null,null,null,null,null,null,null,null,null,null,null,null,null,null,null,null,null,null,null,null,null,null,null,"TX","SHELBY",510400]
["GREENLEE",510400,null,null,null,null,null,null,null,null,null,null,null,null,null,null,null,null,null,null,null,null,null,null,null,null,null,null,null,null,null,null,"TX","SHERMAN",510400]
["GREGG",510400,null,null,null,null,null,null,null,null,null,null,null,null,null,null,null,null,null,null,null,null,null,null,null,null,null,null,null,null,null,null,"TX","SMITH",510400]
["GRIMES",510400,null,null,null,null,null,null,null,null,null,null,null,null,null,null,null,null,null,null,null,null,null,null,null,null,null,null,null,null,null,null,"TX","SOMERVELL",510400]
["GUADALUPE",510400,null,null,null,null,null,null,null,null,null,null,null,null,null,null,null,null,null,null,null,null,null,null,null,null,null,null,null,null,null,null,"TX","STARR",510400]
["GUNNISON",510400,null,null,null,null,null,null,null,null,null,null,null,null,null,null,null,null,null,null,null,null,null,null,null,null,null,null,null,null,null,null,"TX","STEPHENS",510400]
["HALE",510400,null,null,null,null,null,null,null,null,null,null,null,null,null,null,null,null,null,null,null,null,null,null,null,null,null,null,null,null,null,null,"TX","STERLING",510400]
["HALL",510400,null,null,null,null,null,null,null,null,null,null,null,null,null,null,null,null,null,null,null,null,null,null,null,null,null,null,null,null,null,null,"TX","STONEWALL",510400]
["HAMILTON",510400,null,null,null,null,null,null,null,null,null,null,null,null,null,null,null,null,null,null,null,null,null,null,null,null,null,null,null,null,null,null,"TX","SUTTON",510400]
["HANSFORD",510400,null,null,null,null,null,null,null,null,null,null,null,null,null,null,null,null,null,null,null,null,null,null,null,null,null,null,null,null,null,null,"TX","SWISHER",510400]
["HARDEMAN",510400,null,null,null,null,null,null,null,null,null,null,null,null,null,null,null,null,null,null,null,null,null,null,null,null,null,null,null,null,null,null,"TX","TARRANT",510400]
["HARDIN",510400,null,null,null,null,null,null,null,null,null,null,null,null,null,null,null,null,null,null,null,null,null,null,null,null,null,null,null,null,null,null,"TX","TAYLOR",510400]
["HARNEY",510400,null,null,null,null,null,null,null,null,null,null,null,null,null,null,null,null,null,null,null,null,null,null,null,null,null,null,null,null,null,null,"TX","TERRELL",510400]
["HARRIS",510400,null,null,null,null,null,null,null,null,null,null,null,null,null,null,null,null,null,null,null,null,null,null,null,null,null,null,null,null,null,null,"TX","TERRY",510400]
["HARRISON",510400,null,null,null,null,null,null,null,null,null,null,null,null,null,null,null,null,null,null,null,null,null,null,null,null,null,null,null,null,null,null,"TX","THROCKMORTON",510400]
["HARTLEY",510400,null,null,null,null,null,null,null,null,null,null,null,null,null,null,null,null,null,null,null,null,null,null,null,null,null,null,null,null,null,null,"TX","TITUS",510400]
["HASKELL",510400,null,null,null,null,null,null,null,null,null,null,null,null,null,null,null,null,null,null,null,null,null,null,null,null,null,null,null,null,null,null,"TX","TOM GREEN",510400]
["HAYS",510400,null,null,null,null,null,null,null,null,null,null,null,null,null,null,null,null,null,null,null,null,null,null,null,null,null,null,null,null,null,null,"TX","TRAVIS",510400]
["HEMPHILL",510400,null,null,null,null,null,null,null,null,null,null,null,null,null,null,null,null,null,null,null,null,null,null,null,null,null,null,null,null,null,null,"TX","TRINITY",510400]
["HENDERSON",510400,null,null,null,null,null,null,null,null,null,null,null,null,null,null,null,null,null,null,null,null,null,null,null,null,null,null,null,null,null,null,"TX","TYLER",510400]
["HIDALGO",510400,null,null,null,null,null,null,null,null,null,null,null,null,null,null,null,null,null,null,null,null,null,null,null,null,null,null,null,null,null,null,"TX","UPSHUR",510400]
["HILL",510400,null,null,null,null,null,null,null,null,null,null,null,null,null,null,null,null,null,null,null,null,null,null,null,null,null,null,null,null,null,null,"TX","UPTON",510400]
["HINSDALE",510400,null,null,null,null,null,null,null,null,null,null,null,null,null,null,null,null,null,null,null,null,null,null,null,null,null,null,null,null,null,null,"TX","UVALDE",510400]
["HOCKLEY",510400,null,null,null,null,null,null,null,null,null,null,null,null,null,null,null,null,null,null,null,null,null,null,null,null,null,null,null,null,null,null,"TX","VAL VERDE",510400]
["HOOD",510400,null,null,null,null,null,null,null,null,null,null,null,null,null,null,null,null,null,null,null,null,null,null,null,null,null,null,null,null,null,null,"TX","VAN ZANDT",510400]
["HOOD RIVER",510400,null,null,null,null,null,null,null,null,null,null,null,null,null,null,null,null,null,null,null,null,null,null,null,null,null,null,null,null,null,null,"TX","VICTORIA",510400]
["HOPKINS",510400,null,null,null,null,null,null,null,null,null,null,null,null,null,null,null,null,null,null,null,null,null,null,null,null,null,null,null,null,null,null,"TX","WALKER",510400]
["HOUSTON",510400,null,null,null,null,null,null,null,null,null,null,null,null,null,null,null,null,null,null,null,null,null,null,null,null,null,null,null,null,null,null,"TX","WALLER",510400]
["HOWARD",510400,null,null,null,null,null,null,null,null,null,null,null,null,null,null,null,null,null,null,null,null,null,null,null,null,null,null,null,null,null,null,"TX","WARD",510400]
["HUDSPETH",510400,null,null,null,null,null,null,null,null,null,null,null,null,null,null,null,null,null,null,null,null,null,null,null,null,null,null,null,null,null,null,"TX","WASHINGTON",510400]
["HUERFANO",510400,null,null,null,null,null,null,null,null,null,null,null,null,null,null,null,null,null,null,null,null,null,null,null,null,null,null,null,null,null,null,"TX","WEBB",510400]
["HUMBOLDT",510400,null,null,null,null,null,null,null,null,null,null,null,null,null,null,null,null,null,null,null,null,null,null,null,null,null,null,null,null,null,null,"TX","WHARTON",510400]
["HUMBOLDT",510400,null,null,null,null,null,null,null,null,null,null,null,null,null,null,null,null,null,null,null,null,null,null,null,null,null,null,null,null,null,null,"TX","WHEELER",510400]
["HUNT",510400,null,null,null,null,null,null,null,null,null,null,null,null,null,null,null,null,null,null,null,null,null,null,null,null,null,null,null,null,null,null,"TX","WICHITA",510400]
["HUTCHINSON",510400,null,null,null,null,null,null,null,null,null,null,null,null,null,null,null,null,null,null,null,null,null,null,null,null,null,null,null,null,null,null,"TX","WILBARGER",510400]
["IDAHO",510400,null,null,null,null,null,null,null,null,null,null,null,null,null,null,null,null,null,null,null,null,null,null,null,null,null,null,null,null,null,null,"TX","WILLACY",510400]
["IMPERIAL",510400,null,null,null,null,null,null,null,null,null,null,null,null,null,null,null,null,null,null,null,null,null,null,null,null,null,null,null,null,null,null,"TX","WILLIAMSON",510400]
["INYO",510400,null,null,null,null,null,null,null,null,null,null,null,null,null,null,null,null,null,null,null,null,null,null,null,null,null,null,null,null,null,null,"TX","WILSON",510400]
["IRION",510400,null,null,null,null,null,null,null,null,null,null,null,null,null,null,null,null,null,null,null,null,null,null,null,null,null,null,null,null,null,null,"TX","WINKLER",510400]
["IRON",510400,null,null,null,null,null,null,null,null,null,null,null,null,null,null,null,null,null,null,null,null,null,null,null,null,null,null,null,null,null,null,"TX","WISE",510400]
["ISLAND",510400,null,null,null,null,null,null,null,null,null,null,null,null,null,null,null,null,null,null,null,null,null,null,null,null,null,null,null,null,null,null,"TX","WOOD",510400]
["JACK",510400,null,null,null,null,null,null,null,null,null,null,null,null,null,null,null,null,null,null,null,null,null,null,null,null,null,null,null,null,null,null,"TX","YOAKUM",510400]
["JACKSON",510400,null,null,null,null,null,null,null,null,null,null,null,null,null,null,null,null,null,null,null,null,null,null,null,null,null,null,null,null,null,null,"TX","YOUNG",510400]
["JACKSON",510400,null,null,null,null,null,null,null,null,null,null,null,null,null,null,null,null,null,null,null,null,null,null,null,null,null,null,null,null,null,null,"TX","ZAVALA",510400]
["JACKSON",510400]
["JASPER",510400]
["JEFF DAVIS",510400]
["JEFFERSON",510400]
["JEFFERSON",510400]
["JEFFERSON",510400]
["JEFFERSON",510400]
["JEFFERSON - CO",575000]
["JEROME",510400]
["JIM HOGG",510400]
["JIM WELLS",510400]
["JOHNSON",510400]
["JONES",510400]
["JOSEPHINE",510400]
["JUAB",510400]
["KANE",510400]
["KARNES",510400]
["KAUFMAN",510400]
["KENDALL",510400]
["KENEDY",510400]
["KENT",510400]
["KERN",510400]
["KERR",510400]
["KIMBLE",510400]
["KING - WA",741750]
["KING - TX",510400]
["KINGS",510400]
["KINNEY",510400]
["KIOWA",510400]
["KIT CARSON",510400]
["KITSAP",510400]
["KITTITAS",510400]
["KLAMATH",510400]
["KLEBERG",510400]
["KLICKITAT",510400]
["KNOX",510400]
["KOOTENAI",510400]
["LA PAZ",510400]
["LA PLATA",510400]
["LA SALLE",510400]
["LAKE",510400]
["LAKE",510400]
["LAKE - CO",625500]
["LAMAR",510400]
["LAMB",510400]
["LAMPASAS",510400]
["LANDER",510400]
["LANE",510400]
["LARIMER",510400]
["LAS ANIMAS",510400]
["LASSEN",510400]
["LATAH",510400]
["LAVACA",510400]
["LEE",510400]
["LEMHI",510400]
["LEON",510400]
["LEWIS",510400]
["LEWIS",510400]
["LIBERTY",510400]
["LIMESTONE",510400]
["LINCOLN",510400]
["LINCOLN",510400]
["LINCOLN",510400]
["LINCOLN",510400]
["LINCOLN - ID",625500]
["LINN",510400]
["LIPSCOMB",510400]
["LIVE OAK",510400]
["LLANO",510400]
["LOGAN",510400]
["LOS ANGELES",765600]
["LOVING",510400]
["LUBBOCK",510400]
["LYNN",510400]
["LYON",510400]
["MADERA",510400]
["MADISON",510400]
["MADISON",510400]
["MALHEUR",510400]
["MARICOPA",510400]
["MARIN",765600]
["MARION",510400]
["MARION",510400]
["MARIPOSA",510400]
["MARTIN",510400]
["MASON",510400]
["MASON",510400]
["MATAGORDA",510400]
["MAVERICK",510400]
["MCCULLOCH",510400]
["MCLENNAN",510400]
["MCMULLEN",510400]
["MEDINA",510400]
["MENARD",510400]
["MENDOCINO",510400]
["MERCED",510400]
["MESA",510400]
["MIDLAND",510400]
["MILAM",510400]
["MILLARD",510400]
["MILLS",510400]
["MINERAL",510400]
["MINERAL",510400]
["MINIDOKA",510400]
["MITCHELL",510400]
["MODOC",510400]
["MOFFAT",510400]
["MOHAVE",510400]
["MONO",529000]
["MONTAGUE",510400]
["MONTEREY",672750]
["MONTEZUMA",510400]
["MONTGOMERY",510400]
["MONTROSE",510400]
["MOORE",510400]
["MORGAN - CO",510400]
["MORGAN - UT",646300]
["MORRIS",510400]
["MORROW",510400]
["MOTLEY",510400]
["MULTNOMAH",510400]
["NACOGDOCHES",510400]
["NAPA",764750]
["NAVAJO",510400]
["NAVARRO",510400]
["NEVADA",510400]
["NEWTON",510400]
["NEZ PERCE",510400]
["NOLAN",510400]
["NUECES",510400]
["NYE",510400]
["OCHILTREE",510400]
["OKANOGAN",510400]
["OLDHAM",510400]
["ONEIDA",510400]
["ORANGE",510400]
["ORANGE - CA",765600]
["OTERO",510400]
["OURAY",510400]
["OWYHEE",510400]
["PACIFIC",510400]
["PALO PINTO",510400]
["PANOLA",510400]
["PARK - CO",575000]
["PARKER",510400]
["PARMER",510400]
["PAYETTE",510400]
["PECOS",510400]
["PEND OREILLE",510400]
["PERSHING",510400]
["PHILLIPS",510400]
["PIERCE",741750]
["PIMA",510400]
["PINAL",510400]
["PITKIN",765600]
["PIUTE",510400]
["PLACER",569250]
["PLUMAS",510400]
["POLK",510400]
["POLK",510400]
["POTTER",510400]
["POWER",510400]
["PRESIDIO",510400]
["PROWERS",510400]
["PUEBLO",510400]
["RAINS",510400]
["RANDALL",510400]
["REAGAN",510400]
["REAL",510400]
["RED RIVER",510400]
["REEVES",510400]
["REFUGIO",510400]
["RICH",510400]
["RIO BLANCO",510400]
["RIO GRANDE",510400]
["RIVERSIDE",510400]
["ROBERTS",510400]
["ROBERTSON",510400]
["ROCKWALL",510400]
["ROUTT",638250]
["RUNNELS",510400]
["RUSK",510400]
["SABINE",510400]
["SACRAMENTO",569250]
["SAGUACHE",510400]
["SALT LAKE",600300]
["SAN AUGUSTINE",510400]
["SAN BENITO",765600]
["SAN BERNARDINO",510400]
["SAN DIEGO",701500]
["SAN FRANCISCO",765600]
["SAN JACINTO",510400]
["SAN JOAQUIN",510400]
["SAN JUAN",510400]
["SAN JUAN",510400]
["SAN JUAN - WA",510400]
["SAN LUIS OBISPO",690000]
["SAN MATEO",765600]
["SAN MIGUEL",625500]
["SAN PATRICIO",510400]
["SAN SABA",510400]
["SANPETE",510400]
["SANTA BARBARA",625500]
["SANTA CLARA",765600]
["SANTA CRUZ - AZ",510400]
["SANTA CRUZ - CA",765600]
["SCHLEICHER",510400]
["SCURRY",510400]
["SEDGWICK",510400]
["SEVIER",510400]
["SHACKELFORD",510400]
["SHASTA",510400]
["SHELBY",510400]
["SHERMAN",510400]
["SHERMAN",510400]
["SHOSHONE",510400]
["SIERRA",510400]
["SISKIYOU",510400]
["SKAGIT",510400]
["SKAMANIA",510400]
["SMITH",510400]
["SNOHOMISH",741750]
["SOLANO",510400]
["SOMERVELL",510400]
["SONOMA",704950]
["SPOKANE",510400]
["STANISLAUS",510400]
["STARR",510400]
["STEPHENS",510400]
["STERLING",510400]
["STEVENS",510400]
["STONEWALL",510400]
["STOREY",510400]
["SUMMIT",625500]
["SUMMIT - UT",762450]
["SUTTER",510400]
["SUTTON",510400]
["SWISHER",510400]
["TARRANT",510400]
["TAYLOR",510400]
["TEHAMA",510400]
["TELLER",510400]
["TERRELL",510400]
["TERRY",510400]
["TETON",765600]
["THROCKMORTON",510400]
["THURSTON",510400]
["TILLAMOOK",510400]
["TITUS",510400]
["TOM GREEN",510400]
["TOOELE",600300]
["TRAVIS",510400]
["TRINITY",510400]
["TRINITY",510400]
["TULARE",510400]
["TUOLUMNE",510400]
["TWIN FALLS",510400]
["TYLER",510400]
["UINTAH",510400]
["UMATILLA",510400]
["UNION",510400]
["UPSHUR",510400]
["UPTON",510400]
["UTAH",510400]
["UVALDE",510400]
["VAL VERDE",510400]
["VALLEY",510400]
["VAN ZANDT",510400]
["VENTURA",713000]
["VICTORIA",510400]
["WAHKIAKUM",510400]
["WALKER",510400]
["WALLA WALLA",510400]
["WALLER",510400]
["WALLOWA",510400]
["WARD",510400]
["WASATCH",762450]
["WASCO",510400]
["WASHINGTON",510400]
["WASHINGTON",510400]
["WASHINGTON",510400]
["WASHINGTON",510400]
["WASHINGTON",510400]
["WASHOE",510400]
["WAYNE",510400]
["WEBB",510400]
["WEBER",646300]
["WELD",510400]
["WHARTON",510400]
["WHATCOM",510400]
["WHEELER",510400]
["WHEELER",510400]
["WHITE PINE",510400]
["WHITMAN",510400]
["WICHITA",510400]
["WILBARGER",510400]
["WILLACY",510400]
["WILLIAMSON",510400]
["WILSON",510400]
["WINKLER",510400]
["WISE",510400]
["WOOD",510400]
["YAKIMA",510400]
["YAMHILL",510400]
["YAVAPAI",510400]
["YOAKUM",510400]
["YOLO",569250]
["YOUNG",510400]
["YUBA",510400]
["YUMA",510400]
["YUMA",510400]
["ZAPATA",510400]
["ZAVALA",510400]